{"text_format":"3","workbook":"xlsx","n_sheets":2,"sheets":["Zeitachse","Info"],"not_rendered":{"charts":1,"images":2,"defined_names":2},"read":"whole","date_system":"1900"}

{"sheet":"Zeitachse","index":0,"n_rows":49,"n_cols":10,"rows_kept":49}
[]
[]
[]
[{"$nulls":9},"VORLAGEN FÜR ZEITACHSEN von Vertex42.com"]
[{"$nulls":9},"https://www.vertex42.com/ExcelTemplates/timeline.html"]
[]
[]
[{"$nulls":9},"Tipps zur Verwendung dieser Vorlage"]
[{"$nulls":9},"• Beim Bearbeiten der Datentabellen sollten Sie ganze Zeilen einfügen und löschen."]
[{"$nulls":9},"• Lassen Sie die Beschriftungsspalte nicht leer."]
[{"$nulls":9},"• Formatieren Sie die horizontale Achse, um minimale und maximale Grenzen festzulegen."]
[{"$nulls":9},"• Geben Sie eine vertikale Position zwischen -100 und 50 ein"]
[{"$nulls":9},"• Formatieren Sie einzelne Datenbeschriftungen oder Markierungen so, dass bestimmte Ereignisse hervorgehoben werden."]
[{"$nulls":9},"• Lesen Sie Zellenkommentare in der Kopfzeile, um weitere Informationen zu erhalten."]
[]
[{"$nulls":9},"Weitere Hinweise"]
[{"$nulls":9},"• Führungslinien für Meilensteine sind Y-Fehlerindikatoren."]
[{"$nulls":9},"• Führungslinien für Aufgaben sind Y-Fehlerindikatoren."]
[{"$nulls":9},"• Führungslinien für die Aufgabendauer sind X-Fehlerindikatoren."]
{"$rows_empty":8}
[null,"Aufgaben"]
[null,"Start","Ende","Dauer","Bezeichnung","Vert. Position","Vert. Linie"]
[]
[null,"2018-03-28",{"$f":"B31+D31-1","v":"2018-04-11"},15,{"$f":"\"Aufgabe 1, \"&CHAR(10)&TEXT(B31,\"T. MMM.\")&\" - \"&TEXT(C31,\"T. MMM.\")","v":"Aufgabe 1, \n28. Mrz. - 11. Apr."},-25,{"$f":"F31","v":-25}]
[null,{"$f":"C31+1","v":"2018-04-12"},"2018-05-01",20,{"$f":"\"Aufgabe 2, \"&CHAR(10)&TEXT(B32,\"T. MMM.\")&\" - \"&TEXT(C32,\"T. MMM.\")","v":"Aufgabe 2, \n12. Apr. - 1. Mai."},{"$f":"F31-15","v":-40},{"$f":"F32-F31","v":-15}]
[null,{"$f":"C32+1","v":"2018-05-02"},"2018-05-25",24,{"$f":"\"Aufgabe 3, \"&CHAR(10)&TEXT(B33,\"T. MMM.\")&\" - \"&TEXT(C33,\"T. MMM.\")","v":"Aufgabe 3, \n2. Mai. - 25. Mai."},{"$f":"F32-15","v":-55},{"$f":"F33-F32","v":-15}]
[null,"2018-04-28","2018-07-12",76,"Aufgabenbezeichnung 4",-80,{"$f":"F34","v":-80}]
[null,"2018-06-15","2018-07-04",20,"Aufgabenbezeichnung 5",-30,{"$f":"F35","v":-30}]
[null,{"$f":"C35+1","v":"2018-07-05"},"2018-08-03",30,"Aufgabenbezeichnung 6",{"$f":"F35-15","v":-45},{"$f":"F36-F35","v":-15}]
[null,"2018-08-10","2018-09-10",32,"Aufgabenbezeichnung 7",-20,{"$f":"F37","v":-20}]
[null,{"$f":"C37+1","v":"2018-09-11"},"2018-09-15",5,"Aufgabenbezeichnung 8",-60,{"$f":"F38-F37","v":-40}]
[null,{"$f":"C38+1","v":"2018-09-16"},"2018-10-06",21,"Aufgabenbezeichnung 9",{"$f":"F38-15","v":-75},{"$f":"F39-F38","v":-15}]
[{"$nulls":4},"Neue Zeilen über dieser einfügen"]
[]
[null,"Meilensteine"]
[null,"Datum",null,null,"Bezeichnung","Position"]
[]
[null,"2018-04-02",null,null,{"$f":"\"Start, \"&TEXT(B45,\"T. MMM.\")","v":"Start, 2. Apr."},30]
[null,{"$f":"C33","v":"2018-05-25"},null,null,"Meilenstein 1",25]
[null,{"$f":"C36","v":"2018-08-03"},null,null,"Meilenstein 2",20]
[null,{"$f":"C39","v":"2018-10-06"},null,null,{"$f":"\"Liefern, \"&TEXT(B48,\"T. MMM.\")","v":"Liefern, 6. Okt."},15]
[{"$nulls":4},"Neue Zeilen über dieser einfügen"]

{"sheet":"Info","index":1,"n_rows":19,"n_cols":2,"rows_kept":19}
[]
[null,"PROJEKTZEITACHSE von Vertex42.com"]
[null,"https://www.vertex42.com/ExcelTemplates/project-timeline.html"]
[]
[]
[null,"Über diese Vorlage"]
[null,"Diese Vorlage verwendet ein Punktdiagramm mit Datenbeschriftungen und Fehlerindikatoren, um eine Projektzeitachse zu erstellen, in der sowohl Meilensteine als auch Aufgaben mit Dauer angezeigt werden. Im Gegensatz zu einem Gantt-Diagramm, in dem jede Aufgabe in einer separaten Zeile angezeigt wird, steuern Sie die vertikale Positionierung von Aufgaben innerhalb der Zeitachse. Sie können die Länge der vertikalen Führungslinie angeben, die bei der Anzeige von Abhängigkeiten hilft."]
[]
[null,"Diese Art von Projektzeitachse ist vor allem für eine allgemeine Übersicht über das Projekt und nicht für das Anzeigen eines detaillierten Projektstrukturplans hilfreich."]
[]
[null,"Weitere Vorlagen"]
[null,"Besuchen Sie „Vertex42.com“, um weitere Vorlagen für Zeitachsen und Projektmanagement herunterzuladen."]
[null,"Weitere Vorlagen für Zeitachsen"]
[null,"Weitere Vorlagen für Projektmanagement"]
[]
[null,"Informationen zu Vertex42"]
[null,"Vertex42.com bietet professionell entworfene Tabellenkalkulationsvorlagen für die Nutzung im Geschäft, zu Hause und in Bildungseinrichtungen – die meisten können Sie kostenlos herunterladen. Die Sammlung beinhaltet eine Vielzahl von Kalendern, Planern und Zeitplänen sowie Tabellen für die private Finanzkalkulation zur Erstellung von Budgets, Reduzierung von Belastungen und Amortisation von Darlehen."]
[]
[null,"Unternehmen werden bei Rechnungen, Arbeitszeittabellen, Bestandstrackern, Geschäftsberichten und Vorlagen für die Projektplanung fündig. Lehrer und Schüler finden Ressourcen wie Stundenpläne, Klassenbücher und Teilnahmebögen. Organisieren Sie Ihr Familienleben mit Speiseplänen, Checklisten und Übungsprotokollen. Jede Vorlage wurde gründlich recherchiert, verfeinert und im Lauf der Zeit anhand des Feedbacks von Tausenden von Benutzern verbessert."]